bitfinex-derivatives/quotes_SOLF0:USTF0_20241208
["timestamp","ask_amount","ask_price","bid_price","bid_amount"]
[1733621689238,2.0924,238.7,238.6,1.86]
[1733621689431,2.0924,238.7,238.63,6.45729494]
[1733621689835,2.0924,238.7,238.61,1.04704283]
[1733621690131,2.0924,238.7,238.62,6.62609039]
[1733621690327,2.0924,238.7,238.63,4.95082181]
[1733621690532,2.0924,238.7,238.64,1.04704283]
[1733621690734,1.86,238.74,238.58,4.0522]
[1733621690735,2.0927,238.67,238.58,4.0522]
[1733621690930,8.31729494,238.69,238.6,6.45729494]
[1733621691131,8.31729494,238.69,238.61,1.04705635]
[1733621691428,6.45729494,238.65,238.57,6.45729494]
[1733621691630,6.45729494,238.65,238.58,3.90380013]
[1733621691828,6.45729494,238.65,238.59,2.85659356]
[1733621692034,8.55019494,238.65,238.58,2.0934]
[1733621692237,8.55019494,238.65,238.57,6.45729494]
[1733621692432,8.55019494,238.65,238.58,3.90446702]
[1733621692633,8.55019494,238.65,238.57,6.45729494]
[1733621692836,2.093,238.64,238.58,2.85604686]
[1733621693033,3.953,238.64,238.56,6.45729494]
[1733621693229,1.86,238.64,238.49,3.93910061]
[1733621693431,1.86,238.64,238.56,6.45729494]
[1733621693432,6.45729494,238.63,238.56,6.45729494]
[1733621693838,8.55039494,238.63,238.57,2.0935]
[1733621694035,8.55039494,238.63,238.53,1.86]
[1733621694335,8.55039494,238.63,238.56,6.45729494]
[1733621694731,1.86,238.64,238.58,6.45729494]
[1733621695131,1.2641,238.78,238.58,6.45729494]
[1733621695132,1.86,238.74,238.62,6.45729494]
[1733621695335,1.86,238.74,238.66,2.0927]
[1733621695336,6.45729494,238.71,238.66,2.0927]
[1733621695935,6.45729494,238.71,238.67,2.0927]
[1733621697039,6.45729494,238.71,238.65,2.0928]
[1733621697438,6.45729494,238.71,238.62,6.45729494]
[1733621697741,6.45729494,238.71,238.67,2.0927]
[1733621699443,6.45729494,238.73,238.69,2.0925]
[1733621699742,6.45729494,238.73,238.59,3.9314]
[1733621699743,6.45729494,238.71,238.6,1.04715861]
[1733621700041,6.45729494,238.66,238.59,3.9314]
[1733621700938,6.45729494,238.66,238.62,2.093]
[1733621701741,6.45729494,238.64,238.6,2.0932]
[1733621701946,6.45729494,238.64,238.59,3.9314]
[1733621702248,6.45729494,238.66,238.59,3.9314]
[1733621702545,6.45729494,238.66,238.61,2.0932]
[1733621703248,6.45729494,238.66,238.59,10.38869494]
[1733621703249,6.45729494,238.64,238.59,3.4574]
[1733621703448,6.45729494,238.64,238.59,1.3641]
[1733621704055,8.55029494,238.64,238.59,1.3641]
[1733621704250,6.45729494,238.6,238.51,1.3593]
[1733621704445,6.45729494,238.6,238.52,6.45729494]
[1733621704747,1.92,238.63,238.55,2.0937]
[1733621704951,6.45729494,238.62,238.55,2.0937]
[1733621705146,2.0931,238.62,238.56,6.45729494]
[1733621705354,1.92,238.63,238.56,8.55089494]
[1733621706049,6.45729494,238.62,238.56,8.55089494]
[1733621706253,2.0932,238.61,238.56,2.0936]
[1733621706752,6.45729494,238.62,238.56,8.55089494]
[1733621706949,2.0931,238.62,238.57,2.0936]
[1733621707150,1.92,238.65,238.58,6.45729494]
[1733621707348,1.92,238.66,238.58,6.45729494]
[1733621707657,1.92,238.66,238.59,2.0934]
[1733621707658,2.093,238.64,238.59,2.0934]
[1733621708255,2.0929,238.65,238.6,2.0933]
[1733621708456,2.0929,238.65,238.58,6.45729494]
[1733621709156,2.0932,238.61,238.56,2.0937]
[1733621709459,6.45729494,238.62,238.51,1.3593]
[1733621709652,6.45729494,238.62,238.53,6.45729494]
[1733621710053,1.92,238.66,238.55,2.0937]
[1733621710259,6.45729494,238.62,238.55,2.0937]
[1733621710951,2.0933,238.61,238.56,2.0936]
[1733621711251,1.92,238.65,238.57,6.45729494]
[1733621711661,1.92,238.65,238.6,2.0932]
[1733621713149,1.92,238.65,238.58,2.0934]
[1733621713150,2.0931,238.63,238.58,2.0934]
[1733621713354,6.45729494,238.62,238.55,1.92]
[1733621713654,6.45729494,238.62,238.51,1.92]
[1733621713859,2.0934,238.6,238.56,2.0936]
[1733621716155,2.093,238.64,238.59,2.0934]
[1733621717251,2.0931,238.63,238.59,2.0934]
[1733621717961,8.37729494,238.66,238.59,2.0934]
[1733621717962,1.92,238.66,238.61,2.0932]
[1733621718663,4.0129,238.66,238.61,2.0932]
[1733621719461,6.45729494,238.7,238.61,6.45729494]
[1733621719664,8.37729494,238.7,238.61,6.45729494]
[1733621720159,2.5956,238.74,238.61,6.45729494]
[1733621720358,2.5956,238.74,238.63,6.45729494]
[1733621720359,6.45729494,238.72,238.63,6.45729494]
[1733621720564,1.92,238.73,238.61,8.37729494]
[1733621720565,6.45729494,238.7,238.61,8.37729494]
[1733621720963,1.92,238.73,238.61,8.37729494]
[1733621721266,6.45729494,238.71,238.63,6.45729494]
[1733621721565,88.090413,238.75,238.65,6.45729494]
[1733621721766,88.090413,238.75,238.67,6.45729494]
[1733621722367,88.090413,238.75,238.67,7.79639494]
[1733621722565,88.090413,238.75,238.71,2.0923]
[1733621722867,88.090413,238.75,238.67,7.79639494]
[1733621723264,90.182413,238.75,238.69,2.0925]
[1733621723763,88.090413,238.75,238.67,1.3391]
[1733621723970,8.54949494,238.74,238.67,3.4317]
[1733621724171,2.0922,238.74,238.67,3.4317]
[1733621724471,2.0922,238.74,238.67,1.3391]
[1733621724662,2.0922,238.74,238.68,2.0926]
[1733621724862,88.090413,238.75,238.68,6.45729494]
[1733621725773,88.090413,238.75,238.7,2.0924]
[1733621726165,88.090413,238.75,238.73,2.0921]
[1733621726368,2.0917,238.79,238.73,2.0921]
[1733621726768,1.92,238.81,238.72,6.45729494]
[1733621726971,8.54889494,238.8,238.74,2.0921]
[1733621729169,8.54889494,238.8,238.72,6.45729494]
[1733621729374,6.45729494,238.8,238.72,6.45729494]
[1733621729767,2.0915,238.81,238.74,6.45729494]
[1733621730875,2.0915,238.81,238.76,2.0919]
[1733621732273,6.45729494,238.8,238.76,2.0919]
[1733621732578,8.54889494,238.8,238.76,2.0919]
[1733621732776,6.45729494,238.78,238.71,2.04]
[1733621733669,8.54899494,238.78,238.73,2.0921]
[1733621733974,6.45729494,238.74,238.67,9.06549494]
[1733621734170,6.45729494,238.74,238.67,7.79639494]
[1733621734377,6.45729494,238.74,238.67,1.3391]
[1733621734569,6.45729494,238.72,238.65,6.45729494]
[1733621734973,8.54959494,238.72,238.67,2.0927]
[1733621735170,6.45729494,238.72,238.6,1.3479]
[1733621735367,6.45729494,238.72,238.64,6.45729494]
[1733621735572,6.45729494,238.7,238.63,2.093]
[1733621736175,6.45729494,238.7,238.62,8.55039494]
[1733621736176,2.0927,238.67,238.62,8.55039494]
[1733621736773,2.0927,238.67,238.62,6.45729494]
[1733621736977,2.0928,238.66,238.62,6.45729494]
[1733621737377,2.0928,238.66,238.6,7.80519494]
[1733621737573,2.0929,238.65,238.6,6.45729494]
[1733621737775,6.45729494,238.66,238.6,6.45729494]
[1733621737978,6.45729494,238.66,238.58,6.45729494]
[1733621738375,8.55019494,238.66,238.59,2.0934]
[1733621738581,6.45729494,238.66,238.59,2.0934]
[1733621739475,6.45729494,238.66,238.6,6.45729494]
[1733621739680,2.0929,238.65,238.6,6.45729494]
[1733621740274,2.0929,238.65,238.55,3.3565]
[1733621740275,2.04,238.68,238.62,6.45729494]
[1733621740471,2.04,238.68,238.63,2.093]
[1733621741176,2.0927,238.67,238.61,2.0931]
[1733621741578,2.04,238.68,238.61,2.0931]
[1733621741777,2.04,238.68,238.59,2.0933]
[1733621742573,2.0929,238.65,238.59,2.0933]
[1733621743179,2.04,238.68,238.56,13.48612071]
[1733621743877,2.04,238.68,238.58,2.0934]
[1733621744281,2.04,238.68,238.55,1.3165]
[1733621744478,10.11012071,238.66,238.54,1.3484]
[1733621744973,10.11012071,238.66,238.51,2.04]
[1733621745781,10.11012071,238.66,238.55,2.0937]
[1733621747680,2.0933,238.61,238.56,2.0937]
[1733621747879,4.1333,238.61,238.56,2.0937]
[1733621750982,2.0933,238.6,238.56,2.0937]
[1733621752678,2.0934,238.59,238.54,2.0938]
[1733621752881,2.0934,238.59,238.5,10.11012071]
[1733621754685,2.04,238.61,238.5,10.11012071]
[1733621754886,2.0933,238.6,238.5,10.11012071]
[1733621755380,2.0933,238.6,238.54,2.0938]
[1733621755684,2.04,238.61,238.54,2.0938]
[1733621755885,2.04,238.61,238.53,2.0938]
[1733621757595,2.0935,238.58,238.53,2.0938]
[1733621760589,2.0932,238.62,238.56,8.56962111]
[1733621760790,1.2649,238.71,238.6,6.47602111]
[1733621761093,2.568,238.72,238.64,6.47602111]
[1733621761284,2.0924,238.71,238.66,2.0928]
[1733621761787,2.0924,238.71,238.67,2.0927]
[1733621761984,4.0923,238.72,238.67,2.0927]
[1733621762288,2.0923,238.72,238.67,2.0927]
[1733621763294,8.47602111,238.73,238.67,2.0927]
[1733621763295,2.0924,238.71,238.67,2.0927]
[1733621765696,2.0924,238.71,238.62,2.0]
[1733621765697,2.092,238.75,238.7,2.0924]
[1733621765893,6.47602111,238.78,238.69,6.47602111]
[1733621766093,6.47602111,238.76,238.72,2.0922]
[1733621766289,6.47602111,238.74,238.67,2.0]
[1733621766494,6.47602111,238.72,238.67,2.0]
[1733621767097,6.47602111,238.74,238.68,6.47602111]
[1733621767296,6.47602111,238.76,238.68,6.47602111]
[1733621768506,8.56792111,238.76,238.71,2.0923]
[1733621770311,6.47602111,238.74,238.69,2.0925]
[1733621770512,6.47602111,238.74,238.67,2.0]
[1733621771512,6.47602111,238.76,238.7,6.47602111]
[1733621772004,6.47602111,238.76,238.71,2.0923]
[1733621772614,2.0,238.77,238.72,6.47602111]
[1733621772809,88.05413564,238.86,238.74,6.47602111]
[1733621773012,88.05413564,238.86,238.72,2.0]
[1733621773013,6.47602111,238.82,238.77,2.0918]
[1733621773413,6.47602111,238.82,238.76,6.47602111]
[1733621773716,6.47602111,238.84,238.79,2.0916]
[1733621774919,6.47602111,238.84,238.8,2.0915]
[1733621775215,6.47602111,238.84,238.76,6.47602111]
[1733621775410,2.0908,238.89,238.83,2.0913]
[1733621775611,8.56682111,238.89,238.82,1.376]
[1733621776215,8.56682111,238.89,238.83,6.47602111]
[1733621776718,8.56682111,238.89,238.84,2.0912]
[1733621777513,6.47602111,238.92,238.83,6.47602111]
[1733621777717,2.0,238.94,238.82,1.376]
[1733621777718,6.47602111,238.88,238.82,1.376]
[1733621778619,10.09582923,238.9,238.82,3.4674]
[1733621779019,2.0,238.89,238.76,12.09582923]
[1733621779221,2.0,238.89,238.8,2.0915]
[1733621779420,10.09582923,238.87,238.74,1.377]
[1733621779619,10.09582923,238.87,238.75,2.0]
[1733621779919,2.0916,238.81,238.76,2.0919]
[1733621780315,2.0916,238.81,238.75,2.0]
[1733621781620,2.0916,238.81,238.75,4.092]
[1733621782419,2.0916,238.79,238.75,2.0]
[1733621782620,2.0916,238.79,238.74,1.377]
[1733621783116,12.09582923,238.84,238.74,1.377]
[1733621783320,2.0917,238.78,238.74,1.377]
[1733621783625,10.09582923,238.81,238.67,10.09582923]
[1733621783825,10.09582923,238.81,238.69,2.0]
[1733621783826,2.0919,238.76,238.69,2.0]
[1733621784122,2.0,238.79,238.67,12.09582923]
[1733621784322,2.092,238.76,238.67,12.09582923]
[1733621784514,2.092,238.76,238.67,10.09582923]
[1733621784719,2.092,238.76,238.67,12.09582923]
[1733621785418,2.0,238.78,238.67,2.0]
[1733621785620,12.09582923,238.78,238.67,2.0]
[1733621786616,2.0921,238.74,238.67,2.0]
[1733621787021,12.09582923,238.78,238.67,2.0]
[1733621787220,10.09582923,238.81,238.71,2.0923]
[1733621787523,2.0,238.8,238.71,2.0923]
[1733621787720,2.0,238.8,238.73,2.0921]
[1733621787721,4.0916,238.8,238.73,2.0921]
[1733621788115,4.0916,238.8,238.72,2.0]
[1733621788621,2.0917,238.79,238.74,2.0921]
[1733621788922,2.0917,238.79,238.72,2.0]
[1733621789119,2.0917,238.78,238.72,4.0922]
[1733621789326,2.0,238.8,238.68,1.98]
[1733621789720,2.0,238.8,238.66,10.09582923]
[1733621790026,10.09582923,238.78,238.66,1.98]
[1733621790321,2.0921,238.74,238.68,2.0925]
[1733621790523,2.0,238.8,238.69,10.09582923]
[1733621791926,4.0916,238.8,238.69,10.09582923]
[1733621793723,10.09582923,238.79,238.64,4.0544]
[1733621793932,10.09582923,238.79,238.66,1.98]
[1733621794828,10.09582923,238.79,238.7,2.0924]
[1733621795230,2.0919,238.77,238.7,2.0924]
[1733621795429,10.09582923,238.79,238.7,2.0924]
[1733621796522,2.092,238.76,238.7,2.0924]
[1733621797632,10.09582923,238.79,238.66,1.98]
[1733621798226,10.09582923,238.79,238.69,2.0924]
[1733621798432,2.0921,238.74,238.69,2.0924]
[1733621798634,2.0921,238.74,238.66,1.98]
[1733621798635,6.46894318,238.73,238.66,1.98]
[1733621799631,6.46894318,238.73,238.68,2.0925]
[1733621799831,6.46894318,238.73,238.66,1.98]
[1733621800134,2.0921,238.74,238.66,1.98]
[1733621800335,8.56084318,238.77,238.69,6.46894318]
[1733621800935,6.46894318,238.73,238.66,1.98]
[1733621801126,6.46894318,238.73,238.66,6.46894318]
[1733621802136,6.46894318,238.71,238.64,1.3351]
[1733621802333,6.46894318,238.69,238.64,1.3351]
[1733621803339,1.98,238.73,238.65,6.46894318]
[1733621803637,1.98,238.73,238.64,1.3351]
[1733621803638,6.46894318,238.71,238.64,1.3351]
[1733621804035,6.46894318,238.69,238.42,5.81447487]
[1733621804339,6.46894318,238.67,238.59,6.46894318]
[1733621804636,6.46894318,238.67,238.61,2.0932]
[1733621804838,6.46894318,238.67,238.59,8.44894318]
[1733621806640,10.11215711,238.71,238.62,2.0931]
[1733621807239,2.0927,238.67,238.62,2.0931]
[1733621807539,10.11215711,238.71,238.61,2.0932]
[1733621807740,2.0926,238.68,238.58,1.98]
[1733621808041,10.11215711,238.71,238.61,2.0932]
[1733621808242,2.0929,238.65,238.53,10.11215711]
[1733621808541,2.0929,238.65,238.54,1.98]
[1733621809140,2.0929,238.65,238.6,2.0933]
[1733621809942,1.98,238.67,238.63,2.093]
[1733621810140,1.98,238.69,238.56,10.11215711]
[1733621810842,2.0927,238.68,238.62,2.093]
[1733621811040,1.98,238.69,238.59,1.98]
[1733621811643,1.98,238.73,238.6,1.2942]
[1733621811844,2.0919,238.76,238.7,2.0924]
[1733621812137,2.0919,238.76,238.62,10.11215711]
[1733621812138,10.11215711,238.77,238.66,1.98]
[1733621812344,10.11215711,238.74,238.61,4.7024]
[1733621812542,2.0923,238.72,238.66,2.0928]
[1733621812741,10.11215711,238.71,238.61,3.3224]
[1733621812943,2.0925,238.69,238.64,2.0929]
[1733621813141,10.11215711,238.71,238.61,3.3224]
[1733621813338,10.11215711,238.71,238.6,1.2942]
[1733621813841,2.0928,238.66,238.62,2.0931]
[1733621814035,2.0928,238.66,238.6,1.2942]
[1733621814238,1.98,238.68,238.6,1.2942]
[1733621815039,2.0927,238.67,238.62,2.093]
[1733621815243,1.98,238.68,238.6,1.2942]
[1733621815944,1.98,238.68,238.66,2.0928]
[1733621816144,12.09215711,238.74,238.62,1.98]
[1733621816842,2.0922,238.73,238.63,16.09684131]
[1733621817045,2.0922,238.73,238.62,1.98]
[1733621817236,2.0922,238.73,238.63,1.67551703]
[1733621817438,12.09215711,238.74,238.63,1.67551703]
[1733621817639,14.18425711,238.74,238.62,1.98]
[1733621817845,14.18425711,238.74,238.63,1.04710213]
[1733621818238,14.18425711,238.74,238.62,1.98]
[1733621818447,14.18425711,238.74,238.63,6.62138068]
[1733621818645,14.18425711,238.74,238.62,1.98]
[1733621818646,14.18425711,238.74,238.68,2.0926]
[1733621819237,14.18425711,238.74,238.62,1.98]
[1733621819442,2.092,238.75,238.63,12.87656326]
[1733621819640,2.092,238.75,238.64,3.76943895]
[1733621819844,2.092,238.75,238.63,1.67534686]
[1733621820046,2.092,238.75,238.64,1.04703471]
[1733621820341,2.6506,238.78,238.64,10.11215711]
[1733621820747,2.0,238.79,238.67,10.11215711]
[1733621820948,2.0,238.79,238.68,2.0]
[1733621821349,2.0,238.79,238.74,2.092]
[1733621821743,2.0,238.79,238.69,1.3584]
[1733621822354,2.0,238.79,238.76,2.0919]
[1733621823238,2.0,238.79,238.72,2.0923]
[1733621823444,2.0,238.79,238.69,1.3584]
[1733621823844,2.0,238.79,238.74,2.092]
[1733621824443,2.0,238.79,238.75,2.092]
[1733621825550,2.0,238.79,238.73,2.0921]
[1733621825850,2.0,238.79,238.69,1.3584]
[1733621826853,4.0917,238.79,238.73,2.0921]
[1733621827057,2.0,238.81,238.69,1.3584]
[1733621827348,2.0,238.81,238.7,3.91130607]
[1733621827553,2.0,238.81,238.69,1.3584]
[1733621828056,2.0916,238.79,238.69,1.3584]
[1733621828654,2.0916,238.79,238.7,2.86431309]
[1733621828849,2.0916,238.79,238.73,2.0921]
[1733621829848,2.0916,238.79,238.69,1.3584]
[1733621830049,2.0,238.81,238.7,3.91151046]
[1733621830346,2.0,238.81,238.71,1.04687685]
[1733621830547,2.0,238.81,238.69,1.3584]
[1733621830855,2.0916,238.8,238.7,4.95842343]
[1733621831050,2.0916,238.8,238.7,1.04686681]
[1733621831252,2.0916,238.8,238.74,2.092]
[1733621831656,2.0916,238.8,238.75,2.0919]
[1733621831955,2.0,238.81,238.69,1.3584]
[1733621832157,2.0,238.81,238.71,1.04687227]
[1733621832548,6.46485705,238.8,238.73,6.46485705]
[1733621833554,88.06008618,238.85,238.77,6.46485705]
[1733621833757,94.52494323,238.85,238.77,6.46485705]
[1733621833955,2.6845,238.88,238.78,2.0]
[1733621834157,6.46485705,238.88,238.79,6.46485705]
[1733621834353,6.46485705,238.86,238.79,6.46485705]
[1733621834554,6.46485705,238.84,238.79,2.0916]
[1733621834754,6.46485705,238.8,238.71,3.04687227]
[1733621834955,6.46485705,238.78,238.71,1.04687227]
[1733621835155,8.55655705,238.78,238.73,2.0921]
[1733621835359,6.46485705,238.78,238.73,2.0921]
[1733621837559,6.46485705,238.78,238.71,1.04687227]
[1733621838065,2.0,238.8,238.71,1.04687227]
[1733621838066,2.092,238.75,238.71,1.04687227]
[1733621838562,10.10925168,238.75,238.71,1.04687227]
[1733621838965,12.10925168,238.75,238.71,1.04687227]
[1733621839673,2.0922,238.73,238.71,1.04687227]
[1733621839866,2.0,238.75,238.7,2.0924]
[1733621840062,2.0,238.75,238.63,12.10925168]
[1733621840266,2.0,238.75,238.64,4.9600945]
[1733621840473,2.0,238.75,238.72,2.0922]
[1733621841874,2.0918,238.77,238.72,2.0922]
[1733621842170,10.10925168,238.78,238.73,2.0922]
[1733621842171,12.20105168,238.78,238.73,2.0922]
[1733621842677,12.20105168,238.78,238.74,2.0921]
[1733621843370,12.20105168,238.78,238.72,2.0922]
[1733621843371,2.0918,238.77,238.72,2.0922]
[1733621843574,2.0918,238.77,238.68,2.0]
[1733621843776,2.0918,238.77,238.69,4.96041129]
[1733621843978,2.0918,238.77,238.7,1.04700514]
[1733621844176,2.0918,238.77,238.68,2.0]
[1733621844372,2.0918,238.77,238.69,6.63553461]
[1733621844573,10.10925168,238.78,238.74,2.092]
[1733621844770,12.10925168,238.81,238.68,2.0]
[1733621845077,12.10925168,238.81,238.74,2.0921]
[1733621845078,2.0916,238.8,238.74,2.0921]
[1733621845278,2.0916,238.8,238.71,1.3772]
[1733621845577,2.0916,238.8,238.72,4.95992847]
[1733621845782,2.0916,238.8,238.75,2.092]
[1733621846072,2.0916,238.8,238.71,1.3772]
[1733621846278,4.0915,238.81,238.72,6.63478497]
[1733621846478,4.0915,238.81,238.73,4.95983875]
[1733621846675,4.0915,238.81,238.74,2.09368276]
[1733621846875,12.82665168,238.84,238.74,3.91281249]
[1733621847075,15.59345168,238.84,238.75,1.0468109]
[1733621847277,5.4842,238.84,238.76,1.04676469]
[1733621847477,4.0913,238.84,238.79,2.0916]
[1733621847983,2.0913,238.84,238.79,2.0916]
[1733621848377,12.10925168,238.87,238.81,2.0914]
[1733621848378,2.091,238.86,238.81,2.0914]
[1733621848779,2.091,238.87,238.83,2.0913]
[1733621849081,10.10925168,238.91,238.79,1.98]
[1733621849381,12.08925168,238.91,238.79,1.98]
[1733621849581,2.0909,238.88,238.79,1.98]
[1733621849977,10.10925168,238.88,238.76,1.2754]
[1733621850177,10.10925168,238.85,238.75,1.98]
[1733621850378,12.08925168,238.85,238.75,1.98]
[1733621850680,2.0914,238.82,238.71,1.3772]
[1733621850880,12.08925168,238.85,238.73,1.98]
[1733621851477,12.08925168,238.85,238.71,1.3772]
[1733621851676,10.10925168,238.82,238.72,1.04686843]
[1733621851878,10.10925168,238.82,238.71,1.3772]
[1733621852180,10.10925168,238.82,238.72,3.91084186]
[1733621852383,2.0916,238.8,238.71,1.3772]
[1733621852576,3.9762,238.9,238.72,4.95769543]
[1733621852577,1.98,238.83,238.72,4.95769543]
[1733621852781,1.98,238.83,238.73,1.04684179]
[1733621852983,1.98,238.83,238.71,1.3772]
[1733621853184,2.0915,238.82,238.77,2.0918]
[1733621853883,2.0915,238.81,238.75,2.0919]
[1733621854685,2.0916,238.8,238.75,2.0919]
[1733621855084,10.10925168,238.82,238.73,2.0921]
[1733621855683,2.0917,238.78,238.73,2.0921]
[1733621856289,2.0918,238.77,238.73,2.0921]
[1733621858287,2.0919,238.76,238.71,2.0923]
[1733621860080,2.0921,238.74,238.68,2.0925]
[1733621860590,6.46862009,238.74,238.68,2.0925]
[1733621860788,2.0922,238.73,238.68,2.0925]
[1733621860987,2.0922,238.73,238.63,2.093]
[1733621860988,6.46862009,238.69,238.63,2.093]
[1733621861190,6.46862009,238.69,238.6,8.44862009]
[1733621861385,6.46862009,238.69,238.61,4.95951901]
[1733621861579,6.46862009,238.69,238.6,8.44862009]
[1733621861886,6.46862009,238.69,238.61,4.96019617]
[1733621862082,6.46862009,238.69,238.6,8.44862009]
[1733621862284,6.46862009,238.69,238.61,1.04721091]
[1733621862482,1.98,238.73,238.6,1.98]
[1733621862483,10.11299826,238.71,238.6,1.98]
[1733621862689,10.11299826,238.71,238.61,1.04721469]
[1733621862887,10.11299826,238.71,238.58,2.7141]
[1733621863186,10.11299826,238.71,238.59,4.96005795]
[1733621863389,2.0925,238.69,238.63,2.093]
[1733621863783,2.0925,238.69,238.58,1.3769]
[1733621863982,10.11299826,238.71,238.59,6.63495093]
[1733621864185,10.11299826,238.71,238.6,1.0472201]
[1733621864389,10.11299826,238.71,238.59,1.98]
[1733621864587,2.0924,238.7,238.6,12.89283615]
[1733621864792,2.0924,238.7,238.61,5.44562495]
[1733621864995,1.98,238.73,238.64,2.0929]
[1733621866390,1.98,238.73,238.65,1.04725849]
[1733621866588,2.0925,238.7,238.65,2.0929]
[1733621866790,1.98,238.73,238.65,2.0929]
[1733621867689,2.0925,238.69,238.65,2.0929]
[1733621868686,2.0928,238.66,238.62,2.0931]
[1733621869192,2.0927,238.67,238.62,2.0931]
[1733621869386,3.2755,238.76,238.63,4.95577756]
[1733621869588,3.2755,238.76,238.64,8.61113853]
[1733621869589,1.2955,238.76,238.64,8.61113853]
[1733621869789,1.2955,238.76,238.65,4.95577756]
[1733621869985,2.0922,238.73,238.68,2.0926]
[1733621870599,1.2955,238.76,238.68,2.0926]
[1733621870798,2.0923,238.72,238.68,2.0926]
[1733621871391,2.0923,238.72,238.64,1.98]
[1733621871601,1.2955,238.76,238.67,2.0927]
[1733621871895,2.0923,238.71,238.67,2.0927]
[1733621875294,2.0923,238.72,238.67,2.0927]
[1733621875492,1.2955,238.76,238.64,1.98]
[1733621875689,11.44799826,238.77,238.7,2.0924]
[1733621876794,2.092,238.75,238.71,2.0923]
[1733621877193,10.11299826,238.8,238.64,12.09299826]
[1733621877396,10.11299826,238.8,238.67,10.11299826]
[1733621877601,10.11299826,238.8,238.68,6.31744127]
[1733621877797,10.11299826,238.83,238.69,1.0469933]
[1733621878000,1.98,238.82,238.7,3.02689562]
[1733621878195,1.98,238.82,238.7,1.98]
[1733621878397,2.0916,238.8,238.71,1.0468607]
[1733621878605,2.0916,238.8,238.7,1.98]
[1733621878797,2.0916,238.8,238.71,1.0468607]
[1733621879003,2.0916,238.8,238.7,1.98]
[1733621879197,2.0916,238.8,238.71,1.04684618]
[1733621879398,2.0916,238.8,238.7,1.98]
[1733621879601,2.0916,238.8,238.71,1.04684618]
[1733621879903,1.98,238.82,238.7,1.98]
[1733621880102,2.0917,238.79,238.7,1.98]
[1733621881702,2.0917,238.79,238.74,2.092]
[1733621884609,6.46638866,238.78,238.74,2.092]
[1733621885201,2.092,238.75,238.69,2.0924]
[1733621885410,6.46638866,238.74,238.69,2.0924]
[1733621885612,6.46638866,238.72,238.68,1.3633]
[1733621885906,6.46638866,238.72,238.66,3.2439]
[1733621886608,10.10907676,238.75,238.67,2.0926]
[1733621887310,10.10907676,238.75,238.68,2.0926]
[1733621887913,10.10907676,238.75,238.62,3.3016]
[1733621888205,10.10907676,238.75,238.63,4.95430992]
[1733621888405,10.10907676,238.75,238.62,3.3016]
[1733621888406,2.0924,238.71,238.64,1.04709167]
[1733621888604,2.0924,238.71,238.62,3.3016]
[1733621888801,2.0924,238.71,238.63,4.95420675]
[1733621889006,2.0924,238.71,238.64,1.04709157]
[1733621889205,1.96,238.77,238.63,10.10907676]
[1733621889414,4.0519,238.77,238.64,9.52946966]
[1733621889713,1.96,238.77,238.72,2.0922]
[1733621890314,1.96,238.77,238.68,1.96]
[1733621891814,2.0919,238.76,238.71,2.0923]
[1733621892014,1.96,238.77,238.68,1.96]
[1733621892210,1.96,238.77,238.74,2.0921]
[1733621892416,1.96,238.82,238.68,3.2966]
[1733621892616,1.96,238.82,238.69,4.95375628]
[1733621892811,1.96,238.82,238.7,1.04688028]
[1733621893005,1.96,238.82,238.68,3.2966]
[1733621893213,1.96,238.82,238.69,4.95372043]
[1733621893517,2.0916,238.8,238.74,2.092]
[1733621893720,2.0916,238.8,238.68,3.2966]
[1733621893916,2.0916,238.8,238.69,4.95403967]
[1733621894120,2.0916,238.8,238.7,1.04687195]
[1733621894416,2.0916,238.8,238.69,10.10907676]
[1733621894719,2.0916,238.8,238.7,1.04687496]
[1733621894922,2.0916,238.8,238.69,10.10907676]